bitfinex/quotes_BTCUSD_20251224
["timestamp","ask_amount","ask_price","bid_price","bid_amount"]
[1766587142948,0.00010704,86571.0,86522.0,0.23115408]
[1766587142949,0.01155334,86555.0,86522.0,0.23115408]
[1766587143173,1.23943,86570.0,86537.0,0.01386602]
[1766587143403,0.01155187,86566.0,86537.0,0.01386602]
[1766587143634,0.01155374,86552.0,86535.0,0.01208]
[1766587143858,0.01208,86565.0,86535.0,0.01208]
[1766587143859,0.01155268,86560.0,86537.0,0.02542177]
[1766587144063,0.06931776,86558.0,86537.0,0.01386602]
[1766587144266,0.01208,86565.0,86540.0,0.05777675]
[1766587144480,0.01155268,86560.0,86537.0,0.01386602]
[1766587144696,0.01155268,86560.0,86526.0,0.2311421]
[1766587144697,0.000549,86537.0,86514.0,0.06010602]
[1766587144925,0.01155441,86547.0,86527.0,0.01386602]
[1766587145139,0.01155494,86543.0,86515.0,0.01208]
[1766587145350,0.06933561,86536.0,86516.0,0.01208]
[1766587145568,0.06933561,86536.0,86507.0,0.01155975]
[1766587145569,0.01155922,86511.0,86479.0,1.29952]
[1766587145775,0.01155882,86514.0,86506.0,0.194]
[1766587145984,0.04624,86535.0,86506.0,0.194]
[1766587145985,0.01208,86519.0,86506.0,0.09038924]
[1766587146200,0.01155882,86514.0,86481.0,0.01156323]
[1766587146416,1.23943,86520.0,86481.0,0.01218693]
[1766587146629,0.01155802,86520.0,86493.0,0.01386602]
[1766587146852,0.01155655,86531.0,86520.0,0.00055]
[1766587147057,0.01155748,86524.0,86520.0,0.00055]
[1766587147271,0.01155802,86520.0,86508.0,0.01208]
[1766587147482,1.23943,86544.0,86505.0,0.01208]
[1766587147483,0.01155668,86530.0,86505.0,0.01208]
[1766587147691,0.01155641,86532.0,86508.0,0.06935719]
[1766587147905,0.01155334,86555.0,86531.0,0.01155655]
[1766587148133,0.04026098,86567.0,86539.0,0.01386602]
[1766587148134,0.01155174,86567.0,86539.0,0.01386602]
[1766587148356,0.00010697,86567.0,86552.0,0.01386602]
[1766587148624,0.04624,86594.0,86569.0,0.01155147]
[1766587148625,0.01154814,86594.0,86569.0,0.01155147]
[1766587148853,0.01154814,86594.0,86565.0,0.01386602]
[1766587148854,0.00010693,86594.0,86584.0,0.01386602]
[1766587149071,0.01154654,86606.0,86585.0,0.01208]
[1766587149294,1.3976,86616.0,86591.0,0.01386602]
[1766587149505,0.00027539,86619.0,86604.0,0.01386602]
[1766587149726,0.01154534,86615.0,86605.0,1e-06]
[1766587149945,0.01154707,86602.0,86592.0,0.01208]
[1766587150162,0.00055,86592.0,86590.0,0.01208]
[1766587150579,0.01154401,86625.0,86597.0,0.02541376]
[1766587150786,1.23943,86635.0,86597.0,0.02541376]
[1766587150787,0.02362267,86635.0,86609.0,0.01154614]
[1766587150993,0.02540776,86642.0,86619.0,0.000275]
[1766587151171,0.02540776,86642.0,86610.0,0.02474664]
[1766587151172,0.05771005,86641.0,86614.0,0.05772673]
[1766587151409,0.01208,86648.0,86613.0,0.01154561]
[1766587151410,0.05772072,86624.0,86613.0,0.01208]
[1766587151615,0.01154387,86626.0,86520.0,0.4]
[1766587151616,0.00028996,86620.0,86598.0,0.01154761]
[1766587151827,0.00028996,86620.0,86579.0,1.29952]
[1766587151828,0.00028996,86620.0,86579.0,1.31107014]
[1766587152031,0.0577315,86608.0,86581.0,0.01154987]
[1766587152243,0.01154654,86606.0,86584.0,0.01154947]
[1766587152453,0.01154654,86606.0,86582.0,0.06929844]
[1766587152454,0.02770387,86593.0,86560.0,0.01155268]
[1766587152667,0.01154907,86587.0,86561.0,0.01208]
[1766587152871,0.02770387,86597.0,86561.0,0.01208]
[1766587152872,0.01155094,86573.0,86561.0,0.01208]
[1766587153073,0.01155147,86569.0,86557.0,0.04624]
[1766587153286,0.05776295,86561.0,86557.0,0.05266001]
[1766587153499,0.01155414,86549.0,86529.0,0.04624]
[1766587153709,0.01155481,86544.0,86529.0,0.04624]
[1766587153914,0.06932809,86545.0,86530.0,0.01208]
[1766587154127,0.01155414,86549.0,86530.0,0.01208]
[1766587154340,0.01155227,86563.0,86539.0,0.02770387]
[1766587154544,0.01155227,86563.0,86540.0,0.01208]
[1766587154545,0.01155308,86557.0,86540.0,0.01208]
[1766587154747,0.0577625,86562.0,86540.0,0.01208]
[1766587154932,0.01155268,86560.0,86540.0,0.01208]
[1766587155179,0.01155268,86560.0,86534.0,0.06933641]
[1766587155180,0.001099,86540.0,86534.0,0.01208]
[1766587155386,0.06932811,86545.0,86534.0,0.01208]
[1766587155387,0.01155508,86542.0,86534.0,0.01208]
[1766587155604,0.01155494,86543.0,86534.0,0.01208]
[1766587155816,0.01155414,86549.0,86531.0,0.01208]
[1766587156017,0.01208,86552.0,86532.0,0.0138669]
[1766587156226,0.23106893,86555.0,86532.0,0.0138669]
[1766587156227,0.01155414,86549.0,86532.0,0.0138669]
[1766587156446,0.06931899,86557.0,86533.0,0.01208]
[1766587156652,0.01155348,86554.0,86533.0,0.01208]
[1766587156855,0.23105791,86559.0,86533.0,0.01208]
[1766587156856,0.01155401,86550.0,86533.0,0.01208]
[1766587157059,0.02363281,86559.0,86533.0,0.01208]
[1766587157259,0.01155308,86557.0,86532.0,0.02542331]
[1766587157536,0.05776406,86559.0,86534.0,0.05778052]
[1766587157735,0.05776406,86559.0,86532.0,0.0138669]
[1766587157736,0.01155401,86550.0,86529.0,0.00035669]
[1766587157952,0.069318,86558.0,86535.0,0.05832]
[1766587158111,0.06931509,86562.0,86539.0,0.0138669]
[1766587158314,0.01155254,86561.0,86539.0,0.02542238]
[1766587158493,0.01155174,86567.0,86539.0,0.0138669]
[1766587158735,0.05776809,86553.0,86539.0,0.0138669]
[1766587158930,0.01155334,86555.0,86535.0,0.05832]
[1766587158931,0.000549,86539.0,86535.0,0.05832]
[1766587159133,0.00055,86535.0,86529.0,0.00035669]
[1766587159482,0.00055,86535.0,86530.0,0.01208]
[1766587159687,0.23105093,86561.0,86533.0,0.0138669]
[1766587159917,1.15494628,86585.0,86536.0,0.0138669]
[1766587160139,0.01155508,86542.0,86529.0,0.00035669]
[1766587160350,0.01155641,86532.0,86510.0,0.04624]
[1766587160560,0.01155668,86530.0,86511.0,0.01208]
[1766587160769,0.01155775,86522.0,86511.0,0.01208]
[1766587160974,0.01155641,86532.0,86513.0,0.0138669]
[1766587161207,0.02363588,86536.0,86522.0,0.000549]
[1766587161414,0.01208,86539.0,86517.0,0.01155842]
[1766587161607,0.01155601,86535.0,86513.0,0.02542585]
[1766587161843,0.01208,86539.0,86518.0,0.01155828]
[1766587162053,0.01155521,86541.0,86519.0,0.01208]
[1766587162259,0.01155508,86542.0,86519.0,0.01208]
[1766587162483,0.02363494,86543.0,86519.0,0.01208]
[1766587162690,0.0302877,86575.0,86513.0,0.0138669]
[1766587162691,0.01155361,86553.0,86529.0,0.01155681]
[1766587162858,0.23104955,86562.0,86528.0,0.01155695]
[1766587162859,1.8998,86564.0,86543.0,0.000549]
[1766587163061,0.01155201,86565.0,86543.0,0.000549]
[1766587163202,0.01208,86567.0,86548.0,0.05777108]
[1766587163400,0.01208,86567.0,86539.0,0.0138669]
[1766587163401,0.1402,86576.0,86555.0,0.01155334]
[1766587163626,0.05775517,86573.0,86556.0,0.01208]
[1766587163844,0.00055,86556.0,86533.0,0.01155628]
[1766587164040,0.00055,86556.0,86530.0,0.23113371]
[1766587164041,0.01155428,86548.0,86523.0,0.01155762]
[1766587164256,0.01155374,86552.0,86527.0,0.06987708]
[1766587164469,0.01155348,86554.0,86527.0,0.06987708]
[1766587164470,0.01155361,86553.0,86529.0,0.01155681]
[1766587164681,0.01155535,86540.0,86527.0,0.05832]
[1766587164887,0.01155548,86539.0,86527.0,0.05832]
[1766587165095,0.01155468,86545.0,86528.0,0.0138669]
[1766587165301,0.23107241,86553.0,86527.0,0.05832]
[1766587165302,0.01155441,86547.0,86529.0,0.0138669]
[1766587165505,0.01155401,86550.0,86530.0,0.01208]
[1766587165711,0.05776862,86553.0,86530.0,0.01208]
[1766587165957,0.0119094,86556.0,86534.0,0.01155615]
[1766587166138,0.01243619,86556.0,86535.0,0.01271149]
[1766587166404,0.00035619,86556.0,86542.0,0.02542198]
[1766587166592,0.05775827,86568.0,86542.0,0.02542198]
[1766587166593,0.01155174,86567.0,86556.0,0.00019281]
[1766587166761,0.01155294,86558.0,86553.0,0.01208]
[1766587166987,0.01155508,86542.0,86520.0,0.01155802]
[1766587167167,0.01155508,86542.0,86529.0,0.0138669]
[1766587167168,0.00010685,86542.0,86529.0,0.0138669]
[1766587167528,0.00010685,86542.0,86538.0,0.01155561]
[1766587167772,0.00010685,86542.0,86536.0,0.01208]
[1766587168170,0.01155348,86554.0,86536.0,0.01208]
[1766587168360,0.05777039,86550.0,86536.0,0.01243619]
[1766587168695,0.01155468,86545.0,86536.0,0.01133719]
[1766587168899,0.01155401,86550.0,86536.0,0.01133719]
[1766587169082,0.01155361,86553.0,86536.0,0.01133719]
[1766587169316,0.05776577,86557.0,86536.0,0.01133719]
[1766587169515,0.01155348,86554.0,86536.0,0.01133719]
[1766587169718,0.01155268,86560.0,86541.0,0.0138669]
[1766587169852,0.03033962,86577.0,86537.0,0.05777831]
[1766587169853,0.01155161,86568.0,86542.0,0.0138669]
[1766587170062,0.01155147,86569.0,86545.0,0.0693276]
[1766587170414,0.01155174,86567.0,86545.0,0.05779468]
[1766587170539,0.01155174,86567.0,86545.0,0.04624]
[1766587170736,0.01155308,86557.0,86543.0,0.0138669]
[1766587170948,0.01155321,86556.0,86544.0,0.01208]
[1766587171159,0.2688,86569.0,86544.0,0.0138669]
[1766587171374,0.06931069,86567.0,86544.0,0.0138669]
[1766587171732,0.01155241,86562.0,86544.0,0.0138669]
[1766587171959,0.02363187,86566.0,86544.0,0.0138669]
[1766587172095,0.01208,86566.0,86544.0,0.0138669]
[1766587172291,0.01208,86565.0,86547.0,0.01155441]
[1766587172516,0.01208,86565.0,86549.0,0.01155414]
[1766587172517,0.01204,86565.0,86549.0,0.01155414]
[1766587172676,0.01204,86565.0,86544.0,0.0138669]
[1766587172881,0.01155334,86555.0,86542.0,0.01208]
[1766587173089,0.01155334,86555.0,86538.0,0.04624]
[1766587173090,0.23106488,86556.0,86538.0,0.04624]
[1766587173299,0.23106488,86556.0,86528.0,0.0138669]
[1766587173300,0.000549,86542.0,86532.0,0.01204]
[1766587173544,0.06981051,86550.0,86532.0,0.01204]
[1766587173747,0.06932511,86549.0,86532.0,0.01204]
[1766587173994,0.01155414,86549.0,86532.0,0.01204]
[1766587174195,0.01155174,86567.0,86541.0,0.02542211]
[1766587174516,0.01155094,86573.0,86551.0,0.01155388]
[1766587174828,0.01155107,86572.0,86552.0,0.01204]
[1766587174958,1.43551,86580.0,86554.0,0.0138669]
[1766587175160,0.34724947,86584.0,86559.0,0.01155281]
[1766587175392,0.01155041,86577.0,86560.0,0.01204]
[1766587175570,0.01154987,86581.0,86560.0,0.01204]
[1766587175771,0.01154947,86584.0,86560.0,0.02359268]
[1766587175967,0.06928103,86604.0,86578.0,0.01155027]
[1766587176180,0.01154667,86605.0,86578.0,0.01155027]
[1766587176375,0.01204,86609.0,86587.0,0.0138669]
[1766587176577,0.01154601,86610.0,86587.0,0.0138669]
[1766587176578,0.01154521,86616.0,86593.0,0.05774097]
[1766587176781,0.01154561,86613.0,86588.0,0.01204]
[1766587176989,0.23091221,86613.0,86588.0,0.01204]
[1766587177179,0.01154681,86604.0,86588.0,0.01204]
[1766587177377,0.000107,86613.0,86588.0,0.01204]
[1766587177378,0.01154614,86609.0,86588.0,0.01204]
[1766587177580,0.000107,86613.0,86592.0,0.01154841]
[1766587177836,0.000107,86613.0,86589.0,0.0138669]
[1766587178009,0.000107,86613.0,86596.0,0.01154787]
[1766587178209,0.000107,86613.0,86597.0,0.01204]
[1766587178409,0.000107,86613.0,86598.0,0.01204]
[1766587178826,0.01165261,86613.0,86598.0,0.01204]
[1766587179051,0.000107,86613.0,86598.0,0.01204]
[1766587179529,0.01204,86625.0,86613.0,0.000107]
[1766587179747,0.02398227,86638.0,86617.0,0.01154507]
[1766587179948,0.01244,86638.0,86618.0,0.01204]
[1766587180204,0.01154267,86635.0,86618.0,0.01204]
[1766587180598,0.0004,86638.0,86618.0,0.01204]
[1766587180798,0.0004,86638.0,86622.0,0.05772149]
[1766587180947,0.0004,86638.0,86625.0,0.01154401]
[1766587181151,0.01204,86654.0,86628.0,0.0138669]
[1766587181152,0.01154014,86654.0,86628.0,0.0138669]
[1766587181352,0.00075634,86653.0,86642.0,0.0138669]
[1766587181589,0.00075634,86653.0,86632.0,0.05771505]
[1766587181590,0.01153988,86656.0,86643.0,0.01204]
[1766587181756,0.00010686,86656.0,86643.0,0.01204]
[1766587182254,0.01154028,86653.0,86643.0,0.01204]
[1766587182457,0.01154121,86646.0,86639.0,4.3e-07]
[1766587182641,0.00010686,86656.0,86638.0,0.01154227]
[1766587182846,8.6e-07,86656.0,86644.0,0.01154148]
[1766587183092,8.6e-07,86656.0,86655.0,0.0138669]
[1766587183315,8.6e-07,86656.0,86655.0,0.0259069]
[1766587183518,0.83393588,86686.0,86663.0,0.01153894]
[1766587183719,0.83393588,86686.0,86655.0,0.0259069]
[1766587183720,0.00010682,86686.0,86668.0,0.0138669]
[1766587184075,0.00010682,86686.0,86668.0,0.02540518]
[1766587184287,0.00010682,86686.0,86668.0,0.0138669]
[1766587184508,0.00010682,86686.0,86664.0,0.01204]
[1766587184509,0.000106,86668.0,86664.0,0.01204]
[1766587184708,0.000106,86668.0,86664.0,0.01149]
[1766587184907,0.01204,86683.0,86661.0,0.01204]
[1766587184908,0.05769511,86663.0,86661.0,0.01204]
[1766587185152,0.01153881,86664.0,86641.0,1.41804]
[1766587185153,0.01153881,86664.0,86651.0,0.01204]
[1766587185279,0.01153908,86662.0,86651.0,0.01204]
[1766587185484,0.01204,86674.0,86651.0,0.01204]
[1766587185719,0.01153988,86656.0,86647.0,0.0462]
[1766587185874,0.01154041,86652.0,86632.0,0.0462]
[1766587186074,0.01154001,86655.0,86652.0,0.001099]
[1766587186275,0.01153855,86666.0,86652.0,0.001099]
[1766587186484,0.01204,86673.0,86649.0,0.01204]
[1766587186953,0.01153961,86658.0,86642.0,0.0138669]
[1766587187177,0.06973741,86660.0,86642.0,0.00035634]
[1766587187397,4.8673,86659.0,86624.0,0.01154414]
[1766587187614,4.8673,86659.0,86605.0,1.41804]
[1766587187615,0.01154174,86642.0,86628.0,0.0138669]
[1766587187833,1.41444,86658.0,86628.0,0.0138669]
[1766587187834,0.01153908,86662.0,86642.0,0.001099]
[1766587188055,0.01153988,86656.0,86642.0,0.001099]
[1766587188261,0.01153988,86656.0,86629.0,0.0462]
[1766587188262,0.01154187,86641.0,86618.0,0.01154494]
[1766587188468,0.23081925,86648.0,86629.0,0.0138669]
[1766587188671,0.01154081,86649.0,86629.0,0.0138669]
[1766587188872,0.01154134,86645.0,86630.0,0.0138669]
[1766587189094,0.06924791,86646.0,86630.0,0.0138669]
[1766587189298,0.01154134,86645.0,86630.0,0.0138669]
[1766587189500,0.01154108,86647.0,86630.0,0.0138669]
[1766587189737,0.01154014,86654.0,86631.0,0.01154321]
[1766587189969,0.01153988,86656.0,86643.0,0.0138669]
[1766587190194,0.06959355,86659.0,86643.0,0.0138669]
[1766587190406,0.05769888,86657.0,86643.0,0.0138669]
[1766587190689,1.41444,86691.0,86657.0,0.001099]
[1766587190900,0.01153894,86663.0,86657.0,0.001099]
[1766587191121,0.01153881,86664.0,86647.0,0.01204]
[1766587191367,0.01153948,86659.0,86633.0,0.0462]
[1766587191614,0.00104825,86653.0,86638.0,0.01204]
[1766587191837,3.61e-06,86639.0,86638.0,0.01204]
[1766587192072,3.61e-06,86639.0,86638.0,0.01239627]
[1766587192537,0.23077363,86666.0,86638.0,0.01239627]
[1766587192538,0.01153948,86659.0,86638.0,0.01239627]
[1766587192822,0.01154068,86650.0,86638.0,0.01239627]
[1766587193048,0.012,86660.0,86650.0,0.000549]
[1766587193278,0.3006,86667.0,86645.0,0.01154134]
[1766587193522,0.01153788,86671.0,86643.0,0.0138669]
[1766587193523,0.01153828,86668.0,86649.0,0.012]
[1766587193967,0.01153841,86667.0,86649.0,0.012]
[1766587194199,0.97283748,86674.0,86656.0,0.0138669]
[1766587194475,0.01153868,86665.0,86656.0,0.0138669]
[1766587194705,0.01153828,86668.0,86656.0,0.0138669]
[1766587194953,0.01153801,86670.0,86656.0,0.0138669]
[1766587195190,0.01153761,86673.0,86656.0,0.0138669]
[1766587195402,0.01153855,86666.0,86656.0,0.0138669]
[1766587195608,0.01153775,86672.0,86656.0,0.0138669]
[1766587195809,0.01153761,86673.0,86656.0,0.0138669]
[1766587196237,0.01153788,86671.0,86656.0,0.0138669]
[1766587196439,0.24274279,86677.0,86656.0,0.0138669]
[1766587196440,0.01153548,86689.0,86671.0,0.001099]
[1766587196667,0.5438,86686.0,86671.0,0.001099]
[1766587196868,0.6435,86687.0,86667.0,0.01153841]
[1766587197063,0.6435,86687.0,86664.0,0.01153881]
[1766587197064,0.012,86687.0,86669.0,0.0138669]
[1766587197270,0.01153508,86692.0,86669.0,0.0138669]
[1766587197478,0.01153548,86689.0,86669.0,0.0138669]
[1766587197674,0.00010682,86689.0,86669.0,0.02540505]
[1766587197961,0.01153588,86686.0,86669.0,0.0138669]
[1766587198162,0.01153562,86688.0,86669.0,0.0138669]
[1766587198393,0.00010682,86689.0,86669.0,0.02540505]
[1766587198720,0.01153588,86686.0,86670.0,0.0258669]
[1766587199109,0.01153575,86687.0,86670.0,0.0258669]
[1766587199313,0.012,86691.0,86670.0,0.0258669]
[1766587199314,0.01153242,86712.0,86687.0,0.001099]
[1766587199658,0.01153242,86712.0,86671.0,0.0582]
[1766587199659,0.01153522,86691.0,86671.0,0.0462]
[1766587199846,0.01153628,86683.0,86671.0,0.00010682]
[1766587200057,0.0462,86692.0,86662.0,0.012]
[1766587200058,0.012,86682.0,86662.0,0.012]
[1766587200302,0.012,86682.0,86641.0,1.42571]
[1766587200303,1.3571,86680.0,86641.0,1.42571]
[1766587200508,0.01153801,86670.0,86646.0,0.01154121]
[1766587200680,0.01153801,86670.0,86646.0,1.42571]
[1766587200681,0.06969815,86669.0,86646.0,1.42571]
[1766587200881,0.06969815,86669.0,86646.0,1.43725121]
[1766587200882,0.02353828,86668.0,86646.0,1.43725121]
[1766587201061,0.02353828,86668.0,86636.0,0.23084927]
[1766587201062,0.01154041,86652.0,86630.0,1.42571]
[1766587201263,0.01154187,86641.0,86627.0,0.012]
[1766587201464,0.01154201,86640.0,86627.0,0.012]
[1766587201675,0.012,86644.0,86628.0,0.0138669]
[1766587201876,0.23080054,86655.0,86628.0,0.0138669]
[1766587201877,0.012,86649.0,86635.0,0.05771339]
[1766587202089,0.04038361,86689.0,86628.0,0.0138669]
[1766587202090,0.0577024,86652.0,86644.0,0.000549]
[1766587202315,0.02354014,86654.0,86631.0,0.01154321]
[1766587202515,0.01154094,86648.0,86628.0,0.0138669]
[1766587202738,0.00035583,86654.0,86636.0,0.01154254]
[1766587202941,0.012,86653.0,86641.0,0.0138669]
[1766587203145,0.01154054,86651.0,86629.0,1.42571]
[1766587203488,0.01154054,86651.0,86627.0,0.02354374]
[1766587203489,0.01154241,86637.0,86630.0,0.0138669]
[1766587203691,0.00035583,86654.0,86619.0,0.0138669]
[1766587203692,0.012,86642.0,86619.0,0.0138669]
[1766587203905,0.00055,86630.0,86619.0,0.0138669]
[1766587204344,0.012,86642.0,86619.0,0.02541171]
[1766587204556,0.012,86642.0,86621.0,0.01154454]
[1766587204760,0.01154054,86651.0,86620.0,0.01154467]
[1766587204965,1.58825989,86654.0,86632.0,0.0138669]
[1766587204966,0.00035583,86654.0,86632.0,0.0138669]
[1766587205190,0.01154041,86652.0,86632.0,0.0138669]
[1766587205447,0.01154134,86645.0,86627.0,0.012]
[1766587205651,0.012,86644.0,86627.0,0.012]
[1766587205858,0.00035583,86654.0,86632.0,0.0138669]
[1766587206099,0.00035583,86654.0,86644.0,0.000549]
[1766587206296,0.012,86653.0,86644.0,0.000549]
[1766587206443,0.012,86653.0,86632.0,0.0138669]
[1766587206645,0.012,86653.0,86633.0,0.01154294]
[1766587206850,0.00035583,86654.0,86636.0,0.01154254]
[1766587207201,0.0462,86681.0,86648.0,0.05770473]
[1766587207409,0.01153508,86692.0,86669.0,0.0138669]
[1766587207614,0.02440332,86700.0,86677.0,0.01153708]
[1766587207818,0.02440332,86711.0,86690.0,0.01153535]
[1766587208020,0.012,86710.0,86690.0,0.01153535]
[1766587208231,0.01153203,86715.0,86684.0,0.23072162]
[1766587208232,0.0462,86729.0,86698.0,0.01153429]
[1766587208447,0.0462,86729.0,86697.0,0.01153442]
[1766587208448,0.1833,86727.0,86705.0,0.01153336]
[1766587208626,0.1833,86727.0,86699.0,0.012]
[1766587208627,0.01153203,86715.0,86699.0,0.012]
[1766587208864,0.000549,86705.0,86699.0,0.012]
[1766587209055,0.000549,86705.0,86695.0,0.02540159]
[1766587209056,0.000549,86705.0,86695.0,0.0138669]
[1766587209265,0.01153203,86715.0,86699.0,0.012]
[1766587209503,0.01153216,86714.0,86699.0,0.012]
[1766587209693,0.23062797,86720.0,86699.0,0.012]
[1766587209694,0.23060601,86729.0,86699.0,0.012]
[1766587209893,0.01153176,86717.0,86699.0,0.012]
[1766587210024,0.01153163,86718.0,86699.0,0.012]
[1766587210403,0.23062198,86722.0,86699.0,0.012]
[1766587210618,0.01153309,86707.0,86699.0,0.012]
[1766587210829,0.01153229,86713.0,86699.0,0.012]
[1766587211035,0.01153176,86717.0,86699.0,0.012]
[1766587211237,0.012,86722.0,86701.0,0.01153389]
[1766587211437,0.06918377,86726.0,86703.0,0.01153362]
[1766587211647,0.012,86725.0,86706.0,0.01153322]
[1766587211885,0.01153163,86718.0,86707.0,0.012]
[1766587212038,0.01153203,86715.0,86707.0,0.01060537]
[1766587212238,0.05765948,86716.0,86685.0,0.01153602]
[1766587212239,0.01153296,86708.0,86685.0,0.01153602]
[1766587212518,0.01153203,86715.0,86686.0,0.05816]
[1766587212723,0.01153322,86706.0,86686.0,0.05816]
[1766587212923,0.012,86714.0,86686.0,0.05816]
[1766587212924,0.01153269,86710.0,86696.0,0.0138669]
[1766587213149,0.01153242,86712.0,86696.0,0.0138669]
[1766587213364,0.01153163,86718.0,86697.0,0.0138669]
[1766587213572,0.01153136,86720.0,86712.0,0.000549]
[1766587213771,0.01153123,86721.0,86697.0,1.4395769]
[1766587213903,0.01153043,86727.0,86697.0,1.4395769]
[1766587214106,0.0115307,86725.0,86699.0,0.01153415]
[1766587214307,0.06965316,86726.0,86698.0,0.23068492]
[1766587214512,0.0001068,86727.0,86711.0,0.0138669]
[1766587214710,0.0001068,86727.0,86717.0,0.01153176]
[1766587214911,0.0001068,86727.0,86711.0,0.0258269]
[1766587214912,0.01152937,86735.0,86727.0,0.000106]
[1766587215111,0.01153003,86730.0,86727.0,0.000106]
[1766587215337,0.01153003,86730.0,86710.0,1.42571]
[1766587215338,0.06917649,86735.0,86713.0,0.01153229]
[1766587215542,0.0115287,86740.0,86714.0,0.01196]
[1766587215798,0.02436542,86751.0,86729.0,0.08304727]
[1766587215954,0.06959659,86751.0,86730.0,0.01196]
[1766587216158,0.01196,86751.0,86730.0,0.01196]
[1766587216362,0.04067764,86776.0,86746.0,0.0004]
[1766587216531,0.05762054,86775.0,86763.0,0.0138669]
[1766587216888,0.01152711,86752.0,86723.0,0.01153096]
[1766587217189,0.00691445,86775.0,86721.0,1.42571]
[1766587217190,0.0691535,86764.0,86746.0,0.0138669]
[1766587217425,0.01152379,86777.0,86760.0,0.0138669]
[1766587217705,0.00010675,86777.0,86760.0,0.0258269]
[1766587217919,0.00010675,86777.0,86760.0,0.01196]
[1766587218134,0.06915509,86762.0,86754.0,0.01196]
[1766587218297,0.01152578,86762.0,86754.0,0.01196]
[1766587218474,0.06915108,86767.0,86762.0,0.000549]
[1766587218851,0.01152604,86760.0,86754.0,0.01196]
[1766587219052,0.01152458,86771.0,86748.0,0.01152764]
[1766587219188,0.01152325,86781.0,86762.0,0.0138669]
[1766587219387,0.01152325,86781.0,86763.0,0.01196]
[1766587219388,0.01152365,86778.0,86763.0,0.01196]
[1766587219589,0.01152352,86779.0,86763.0,0.01196]
[1766587219789,0.01152392,86776.0,86763.0,0.01196]
[1766587220232,0.00010675,86777.0,86763.0,0.01196]
[1766587220496,6e-08,86775.0,86763.0,0.01196]
[1766587220703,0.01152472,86770.0,86763.0,0.011411]
[1766587220913,0.01152458,86771.0,86763.0,0.011411]
[1766587221289,0.01152498,86768.0,86763.0,0.011411]
[1766587221527,6e-08,86775.0,86746.0,0.0138669]
[1766587221528,0.01152644,86757.0,86746.0,0.0138669]
[1766587221681,0.01152618,86759.0,86746.0,0.0138669]
[1766587222032,0.00055,86746.0,86735.0,0.0138669]
[1766587222252,0.01196,86772.0,86749.0,0.02539441]
[1766587222415,0.01152246,86787.0,86772.0,0.000549]
[1766587222616,0.01152339,86780.0,86769.0,0.01196]
[1766587222822,0.01152299,86783.0,86769.0,0.01196]
[1766587223030,0.01152299,86783.0,86712.0,0.063543]
[1766587223031,0.00221926,86770.0,86757.0,0.01196]
[1766587223201,0.01163145,86770.0,86757.0,0.01196]
[1766587223404,0.01152618,86759.0,86741.0,1.42571]
[1766587223603,0.00010673,86770.0,86759.0,0.001099]
[1766587223806,0.01152219,86789.0,86764.0,0.05762716]
[1766587224030,0.01152219,86789.0,86763.0,0.02539255]
[1766587224031,0.01152325,86781.0,86763.0,0.0138669]
[1766587224388,0.5773,86790.0,86763.0,0.0138669]
[1766587224598,0.02348193,86791.0,86763.0,0.0138669]
[1766587224599,0.01152259,86786.0,86763.0,0.0138669]
[1766587224721,0.01196,86789.0,86765.0,0.01152538]
[1766587224935,0.05761394,86785.0,86763.0,0.0138669]
[1766587225147,0.01152286,86784.0,86763.0,0.0138669]
[1766587225388,0.00010669,86789.0,86763.0,0.0138669]
[1766587225389,0.00010669,86789.0,86777.0,0.00150691]
[1766587225638,0.46074346,86817.0,86784.0,0.000549]
[1766587225639,0.01196,86797.0,86784.0,0.000549]
[1766587225766,0.01151994,86806.0,86784.0,0.000549]
[1766587225970,0.01196,86807.0,86791.0,0.0138669]
[1766587226169,1.3571,86818.0,86791.0,0.01357201]
[1766587226170,0.0575931,86816.0,86791.0,0.01357201]
[1766587226367,1.15145762,86847.0,86799.0,0.0004]
[1766587226368,0.01151821,86819.0,86799.0,0.0004]
[1766587226578,0.05759139,86819.0,86799.0,0.0004]
[1766587226777,0.02796069,86820.0,86799.0,0.0004]
[1766587226778,0.03947877,86820.0,86799.0,0.0004]
[1766587226984,0.01600069,86820.0,86806.0,0.0138669]
[1766587227242,0.01610736,86820.0,86807.0,0.0258269]
[1766587227447,0.2303216,86836.0,86820.0,0.00015]
[1766587227448,0.01151596,86836.0,86820.0,0.00015]
[1766587227622,0.06910179,86829.0,86807.0,0.0258269]
[1766587227824,0.01151702,86828.0,86807.0,0.02593357]
[1766587228026,0.01196,86836.0,86810.0,0.01151941]
[1766587228027,0.01151609,86835.0,86810.0,0.01151941]
[1766587228232,0.01151609,86835.0,86807.0,0.03745337]
[1766587228233,0.01151476,86845.0,86835.0,0.00055]
[1766587228433,0.05757914,86838.0,86835.0,0.00055]
[1766587228639,0.01151503,86843.0,86825.0,0.01196]
[1766587228816,0.00430879,86836.0,86826.0,0.0138669]
[1766587229015,0.01196,86846.0,86826.0,0.0138669]
[1766587229242,0.01151543,86840.0,86826.0,0.0138669]
[1766587229475,0.01196,86846.0,86827.0,0.01196]
[1766587229608,0.01151635,86833.0,86824.0,0.01196]
[1766587229827,0.01196,86846.0,86824.0,0.01206667]
[1766587229828,0.01151582,86837.0,86824.0,0.01206667]
[1766587230021,0.01151662,86831.0,86824.0,0.01206667]
[1766587230264,2.9826,86844.0,86831.0,0.000549]
[1766587230468,0.01196,86849.0,86831.0,0.000549]
[1766587230665,0.06907727,86860.0,86833.0,0.05758179]
[1766587230923,0.01151251,86862.0,86833.0,0.05758179]
[1766587230924,0.01151251,86862.0,86833.0,0.01151635]
[1766587231088,0.01196,86864.0,86832.0,0.0719469]
[1766587231296,0.3545,86875.0,86856.0,0.0115133]
[1766587231443,0.05755397,86875.0,86857.0,0.01196]
[1766587231643,1.35502,86876.0,86840.0,1.4663]
[1766587231644,0.02537822,86871.0,86846.0,0.05757263]
[1766587231861,0.01151211,86865.0,86847.0,0.01196]
[1766587232053,0.0138669,86871.0,86847.0,0.01196]
[1766587232054,0.01151052,86877.0,86865.0,0.000549]
[1766587232257,0.01196,86882.0,86865.0,0.000549]
[1766587232493,0.0138669,86912.0,86872.0,0.01006018]
[1766587232494,0.01150853,86892.0,86872.0,0.01006018]
[1766587232705,0.01150681,86905.0,86874.0,0.05755419]
[1766587232912,0.0061288,86931.0,86874.0,0.05755419]
[1766587232914,0.0061288,86931.0,86888.0,0.0004]
[1766587232915,0.01150734,86901.0,86888.0,0.0004]
[1766587233125,0.01196,86923.0,86874.0,0.00010667]
[1766587233126,0.01150853,86892.0,86889.0,0.0009173]